bitfinex-derivatives/quotes_SOLF0:USTF0_20240913
["timestamp","ask_amount","ask_price","bid_price","bid_amount"]
[1726269433794,3.6012,138.77,138.74,11.08]
[1726269434387,3.6014,138.76,138.74,11.08]
[1726269434691,11.08,138.79,138.74,11.08]
[1726269435098,3.6012,138.77,138.74,11.08]
[1726269436182,3.6012,138.77,138.75,11.08]
[1726269436380,3.6009,138.78,138.76,11.08]
[1726269436589,16.03626236,138.8,138.76,11.08]
[1726269436796,16.03626236,138.82,138.77,11.08]
[1726269436991,13.8101,138.83,138.77,11.08]
[1726269436992,3.6004,138.8,138.77,11.08]
[1726269438991,3.6006,138.79,138.77,11.08]
[1726269439986,3.6008,138.78,138.74,3.6018]
[1726269440185,16.03626236,138.82,138.71,5.00440586]
[1726269440487,11.08,138.79,138.74,11.08]
[1726269440888,3.6012,138.77,138.74,11.08]
[1726269442995,3.601,138.78,138.74,11.08]
[1726269443294,3.601,138.78,138.73,3.6021]
[1726269443295,3.601,138.78,138.75,11.08]
[1726269443701,2.7301,138.83,138.71,5.00440586]
[1726269443702,3.6006,138.79,138.76,11.08]
[1726269443994,27.11626236,138.81,138.76,11.08]
[1726269443995,11.08,138.81,138.76,11.08]
[1726269444394,3.6007,138.79,138.76,11.08]
[1726269444888,3.6008,138.78,138.76,11.08]
[1726269445092,3.6008,138.78,138.75,11.08]
[1726269445297,3.6008,138.78,138.73,3.602]
[1726269445492,3.6008,138.78,138.75,11.08]
[1726269446402,3.6012,138.77,138.75,11.08]
[1726269446902,3.6014,138.76,138.72,3.6023]
[1726269447102,3.6014,138.76,138.74,11.08]
[1726269447504,3.6012,138.77,138.74,11.08]
[1726269449394,11.08,138.79,138.71,5.00440586]
[1726269449593,11.08,138.77,138.72,11.08]
[1726269449897,1.3898,138.78,138.7,1.18181818]
[1726269449898,11.08,138.75,138.7,1.18181818]
[1726269450200,1.3898,138.78,138.71,11.08]
[1726269450201,1.3427,138.76,138.71,11.08]
[1726269450397,3.6019,138.74,138.71,11.08]
[1726269451201,1.3427,138.76,138.71,11.08]
[1726269451401,3.6017,138.75,138.71,11.08]
[1726269451606,1.3427,138.76,138.71,11.08]
[1726269452907,3.6018,138.74,138.71,11.08]
[1726269454801,3.6018,138.74,138.7,1.18181818]
[1726269454802,3.6018,138.74,138.7,12.26181818]
[1726269455507,3.6022,138.73,138.7,12.26181818]
[1726269456595,3.6019,138.74,138.7,12.26181818]
[1726269457398,3.6021,138.73,138.7,12.26181818]
[1726269457802,3.6021,138.73,138.7,1.18181818]
[1726269459408,3.6024,138.72,138.7,1.18181818]
[1726269460106,3.6026,138.71,138.7,1.18181818]
[1726269463710,3.6025,138.72,138.7,1.18181818]
[1726269465207,3.6026,138.71,138.7,1.18181818]
[1726269465905,4.9881,138.73,138.7,1.18181818]
[1726269468506,16.0681,138.73,138.7,1.18181818]
[1726269470614,3.6024,138.72,138.7,1.18181818]
[1726269470805,14.6824,138.72,138.7,1.18181818]
[1726269472018,1.3858,138.73,138.7,1.18181818]
[1726269473209,4.9879,138.73,138.7,1.18181818]
[1726269473522,16.0679,138.73,138.7,1.18181818]
[1726269473820,12.4658,138.73,138.7,1.18181818]
[1726269474020,14.6824,138.72,138.7,1.18181818]
[1726269478510,11.08,138.71,138.7,1.18181818]
[1726269487612,1.3858,138.73,138.7,1.18181818]
[1726269487918,11.08,138.72,138.7,1.18181818]
[1726269489218,14.6824,138.72,138.7,1.18181818]
[1726269489425,11.08,138.72,138.7,1.18181818]
[1726269492527,1.3858,138.73,138.7,1.18181818]
[1726269499131,3.602,138.74,138.7,1.18181818]
[1726269500239,11.08,138.73,138.7,1.18181818]
[1726269500427,11.08,138.71,138.7,1.18181818]
[1726269503745,14.6826,138.71,138.7,1.18181818]
[1726269504035,11.08,138.71,138.7,1.18181818]
[1726269505640,3.6026,138.72,138.7,1.18181818]
[1726269505843,11.08,138.74,138.7,1.18181818]
[1726269506936,14.682,138.74,138.7,1.18181818]
[1726269507338,14.682,138.74,138.7,12.26181818]
[1726269508246,3.6024,138.72,138.7,1.18181818]
[1726269508638,14.6824,138.72,138.7,1.18181818]
[1726269508944,3.6026,138.71,138.7,1.18181818]
[1726269513937,14.6826,138.71,138.7,1.18181818]
[1726269518842,11.08,138.73,138.7,1.18181818]
[1726269519246,14.6822,138.73,138.7,1.18181818]
[1726269519645,3.6022,138.73,138.7,1.18181818]
[1726269519851,14.6822,138.73,138.7,1.18181818]
[1726269520052,30.72861687,138.73,138.7,1.18181818]
[1726269520244,2.6526,138.76,138.7,1.18181818]
[1726269520245,16.04641687,138.72,138.7,1.18181818]
[1726269520447,16.04641687,138.73,138.7,12.26181818]
[1726269521148,30.72811687,138.75,138.7,12.26181818]
[1726269521556,3.6019,138.74,138.7,12.26181818]
[1726269522555,11.08,138.72,138.7,1.18181818]
[1726269527256,3.6022,138.73,138.7,1.18181818]
[1726269527757,14.6822,138.73,138.7,1.18181818]
[1726269528760,11.08,138.73,138.7,1.18181818]
[1726269530163,3.6019,138.74,138.7,1.18181818]
[1726269530458,14.6819,138.74,138.7,1.18181818]
[1726269530965,30.72811687,138.75,138.7,15.86471818]
[1726269531463,30.72811687,138.75,138.7,4.78471818]
[1726269531659,19.64811687,138.75,138.7,1.18181818]
[1726269531860,16.04641687,138.74,138.7,12.26181818]
[1726269532057,3.6018,138.74,138.7,12.26181818]
[1726269532254,14.6818,138.74,138.7,12.26181818]
[1726269537475,14.6818,138.74,138.7,1.18181818]
[1726269540179,27.12641687,138.75,138.7,12.26181818]
[1726269540362,16.04641687,138.74,138.7,12.26181818]
[1726269540563,11.08,138.75,138.7,12.26181818]
[1726269540969,14.6817,138.75,138.7,15.86451818]
[1726269541977,30.72811687,138.75,138.7,15.86451818]
[1726269547089,16.04641687,138.75,138.72,11.08]
[1726269547385,22.30041687,138.76,138.72,11.08]
[1726269548478,22.30041687,138.76,138.72,14.74963245]
[1726269548683,20.95771687,138.76,138.72,14.74963245]
[1726269549381,20.95771687,138.76,138.72,18.35193245]
[1726269551481,20.95771687,138.76,138.72,3.66963245]
[1726269551482,3.6017,138.75,138.72,3.66963245]
[1726269551681,3.6017,138.75,138.72,11.08]
[1726269551879,3.6017,138.75,138.72,14.67847421]
[1726269552787,20.95771687,138.76,138.72,14.67847421]
[1726269554989,20.95771687,138.76,138.72,18.28077421]
[1726269555788,20.95771687,138.76,138.73,11.08]
[1726269555989,4.9113,138.76,138.73,11.08]
[1726269558891,1.3099,138.76,138.73,11.08]
[1726269559389,1.3099,138.76,138.73,14.6821]
[1726269559589,14.6809,138.78,138.73,14.6821]
[1726269562093,14.6809,138.78,138.74,14.6818]
[1726269563291,18.54947086,138.79,138.74,14.6818]
[1726269563593,3.6006,138.79,138.76,11.08]
[1726269563781,7.6352,138.8,138.76,11.08]
[1726269568591,7.6352,138.8,138.75,3.6015]
[1726269568791,7.6352,138.8,138.77,11.08]
[1726269569700,4.0348,138.8,138.77,11.08]
[1726269570896,7.6351,138.8,138.77,11.08]
[1726269572999,7.6351,138.8,138.75,3.6014]
[1726269573301,7.6351,138.8,138.77,11.08]
[1726269575102,2.6977,138.8,138.77,11.08]
[1726269580221,1.3785,138.86,138.79,11.08]
[1726269580511,11.08,138.82,138.73,1.404]
[1726269580705,11.08,138.81,138.73,1.404]
[1726269580910,3.6004,138.8,138.76,11.08]
[1726269582209,14.6804,138.8,138.76,11.08]
[1726269590010,3.6004,138.8,138.77,11.08]
[1726269591722,3.6001,138.81,138.77,11.08]
[1726269596428,11.08,138.78,138.72,3.59847421]
[1726269596722,11.08,138.78,138.73,11.08]
[1726269596918,3.6012,138.77,138.73,14.72679049]
[1726269597827,3.6012,138.77,138.73,18.32889049]
[1726269599029,3.6009,138.78,138.75,11.08]
[1726269601024,3.6009,138.78,138.73,7.24879049]
[1726269601224,3.6009,138.78,138.73,11.08]
[1726269601225,11.08,138.78,138.73,11.08]
[1726269601634,3.6012,138.77,138.73,11.08]
[1726269603929,14.6812,138.77,138.73,11.08]
[1726269604439,3.6016,138.75,138.7,1.18181818]
[1726269604634,11.08,138.75,138.7,1.18181818]
[1726269604837,11.08,138.75,138.7,12.26181818]
[1726269605827,3.602,138.74,138.7,12.26181818]
[1726269606223,11.08,138.76,138.71,11.08]
[1726269607936,3.6017,138.75,138.71,11.08]
[1726269610832,14.6817,138.75,138.71,11.08]
[1726269611032,3.6018,138.74,138.7,1.18181818]
[1726269611534,3.6021,138.73,138.7,1.18181818]
[1726269612742,14.6821,138.73,138.7,1.18181818]
[1726269614761,3.6024,138.72,138.7,1.18181818]
[1726269615043,1.3722,138.74,138.7,1.18181818]
[1726269615044,12.4522,138.74,138.7,1.18181818]
[1726269615339,11.08,138.71,138.7,1.18181818]
[1726269615740,14.6826,138.71,138.7,1.18181818]
[1726269616230,11.08,138.7,138.69,1.18181818]
[1726269616728,14.6829,138.7,138.69,1.18181818]
[1726269620543,3.6029,138.7,138.69,1.18181818]
[1726269620744,14.6829,138.7,138.69,1.18181818]
[1726269624442,3.6029,138.7,138.69,1.18181818]
[1726269626146,14.6829,138.7,138.69,1.18181818]
[1726269629442,3.6029,138.7,138.69,1.18181818]
[1726269633559,14.6829,138.7,138.69,1.18181818]
[1726269635552,3.6031,138.69,138.68,1.18181818]
[1726269635746,16.0299,138.69,138.68,1.18181818]
[1726269636659,4.9499,138.69,138.68,1.18181818]
[1726269637453,16.0299,138.69,138.68,1.18181818]
[1726269639454,16.0299,138.69,138.66,1.18181818]
[1726269639455,12.4268,138.69,138.66,1.18181818]
[1726269639650,11.08,138.67,138.66,1.18181818]
[1726269640454,1.3468,138.69,138.64,1.18181818]
[1726269640659,11.08,138.65,138.63,1.18181818]
[1726269640860,3.6044,138.64,138.63,1.18181818]
[1726269641062,14.6844,138.64,138.63,1.18181818]
[1726269642056,3.6044,138.64,138.63,1.18181818]
[1726269642248,3.6047,138.63,138.62,2.36363636]
[1726269642453,14.6847,138.63,138.62,2.36363636]
[1726269643264,25.17450382,138.73,138.62,2.36363636]
[1726269643459,11.08,138.64,138.62,2.36363636]
[1726269643764,3.6047,138.63,138.62,2.36363636]
[1726269643967,11.08,138.65,138.62,2.36363636]
[1726269645165,3.6046,138.64,138.62,2.36363636]
[1726269647663,1.3946,138.68,138.62,13.44363636]
[1726269647859,11.08,138.67,138.62,13.44363636]
[1726269649867,3.6042,138.65,138.62,13.44363636]
[1726269650365,3.6042,138.65,138.62,2.36363636]
[1726269650561,1.3946,138.68,138.58,2.36363636]
[1726269650767,11.08,138.59,138.58,2.36363636]
[1726269651257,14.6857,138.59,138.58,2.36363636]
[1726269652473,3.6057,138.59,138.58,2.36363636]
[1726269653265,1.4087,138.67,138.58,2.36363636]
[1726269653467,11.08,138.62,138.58,2.36363636]
[1726269654066,11.08,138.61,138.58,2.36363636]
[1726269654471,3.6051,138.62,138.58,13.44363636]
[1726269654765,11.08,138.62,138.58,13.44363636]
[1726269654961,11.08,138.62,138.58,2.36363636]
[1726269655158,1.4087,138.67,138.58,2.36363636]
[1726269655358,11.08,138.62,138.58,2.36363636]
[1726269655772,3.6054,138.61,138.58,2.36363636]
[1726269656770,3.6055,138.6,138.58,2.36363636]
[1726269662480,14.6855,138.6,138.58,2.36363636]
[1726269664673,2.778,138.67,138.58,2.36363636]
[1726269664674,14.6857,138.59,138.58,2.36363636]
[1726269669578,11.08,138.59,138.58,2.36363636]
[1726269670979,3.6057,138.59,138.58,2.36363636]
[1726269671576,14.6857,138.59,138.58,2.36363636]
[1726269671973,3.6057,138.59,138.58,2.36363636]
[1726269676685,14.6857,138.59,138.58,2.36363636]
[1726269680184,11.08,138.59,138.58,2.36363636]
[1726269680383,3.6056,138.6,138.58,2.36363636]
[1726269680690,3.6046,138.64,138.58,2.36363636]
[1726269680885,2.778,138.67,138.58,13.44363636]
[1726269681087,2.778,138.67,138.61,11.08]
[1726269681281,11.08,138.66,138.61,11.08]
[1726269681783,3.6042,138.65,138.61,11.08]
[1726269684684,3.6042,138.65,138.6,11.08]
[1726269686698,14.684,138.66,138.6,11.08]
[1726269687191,14.684,138.66,138.61,11.08]
[1726269690693,3.6042,138.65,138.61,11.08]
[1726269694000,11.08,138.66,138.61,11.08]
[1726269694001,3.6045,138.64,138.61,11.08]
[1726269704201,3.6045,138.64,138.62,11.08]
[1726269708901,3.6042,138.65,138.62,11.08]
[1726269715117,1.3946,138.68,138.64,11.08]
[1726269715319,11.08,138.7,138.66,11.08]
[1726269716011,3.6032,138.69,138.66,11.08]
[1726269716417,11.08,138.7,138.66,11.08]
[1726269717918,3.6034,138.68,138.66,11.08]
[1726269719321,1.4029,138.74,138.67,11.08]
[1726269719517,11.08,138.72,138.67,11.08]
[1726269720622,3.6022,138.73,138.68,11.08]
[1726269721327,3.6024,138.72,138.68,14.73735805]
[1726269724428,3.6026,138.71,138.64,2.7759]
[1726269724626,3.6026,138.71,138.67,11.08]
[1726269724818,3.6026,138.71,138.67,14.60164592]
[1726269727221,3.6026,138.71,138.67,3.52164592]
[1726269727420,3.6026,138.71,138.68,11.08]
[1726269729038,3.603,138.7,138.65,3.6041]
[1726269729329,11.08,138.72,138.67,11.08]
[1726269729931,3.6031,138.7,138.67,11.08]
[1726269732032,3.6031,138.69,138.67,11.08]
[1726269734035,1.4029,138.74,138.68,11.08]
[1726269734036,3.6027,138.71,138.68,11.08]
[1726269734236,3.6027,138.71,138.7,11.08]
[1726269734733,3.6025,138.72,138.7,11.08]
[1726269735325,3.6022,138.73,138.7,11.08]
[1726269736129,5.0048,138.74,138.7,11.08]
[1726269738125,3.6021,138.73,138.7,11.08]
[1726269739233,3.6021,138.73,138.67,3.6035]
[1726269739434,3.6021,138.73,138.69,11.08]
[1726269747535,11.08,138.72,138.66,3.68350681]
[1726269747733,11.08,138.72,138.64,2.7759]
[1726269747938,11.08,138.72,138.67,11.08]
[1726269748140,3.6029,138.7,138.67,14.64176817]
[1726269748841,3.6032,138.69,138.67,14.64176817]
[1726269750041,3.6034,138.68,138.67,11.08]
[1726269750243,1.4029,138.74,138.64,6.3802]
[1726269750244,11.08,138.71,138.64,6.3802]
[1726269750437,11.08,138.71,138.66,11.08]
[1726269750645,3.6035,138.68,138.66,14.65067283]
[1726269753446,3.6035,138.68,138.67,11.08]
[1726269760250,3.6038,138.67,138.64,2.7759]
[1726269760550,3.6038,138.67,138.65,11.08]
[1726269762051,3.6039,138.66,138.65,11.08]
[1726269770864,3.6038,138.67,138.65,11.08]
[1726269778060,11.08,138.71,138.65,11.08]
[1726269778061,3.6035,138.68,138.66,14.74239975]
[1726269778561,3.6033,138.69,138.66,14.74239975]
[1726269778963,11.08,138.72,138.66,14.74239975]
[1726269780067,3.6033,138.69,138.66,14.74239975]
[1726269784769,1.4029,138.74,138.68,11.08]
[1726269784958,12.4829,138.74,138.69,11.08]
[1726269785359,3.6027,138.71,138.69,11.08]
[1726269785668,11.08,138.73,138.68,11.08]
[1726269785965,3.6026,138.71,138.68,11.08]
[1726269786357,11.08,138.7,138.64,2.7759]
[1726269786564,3.6033,138.69,138.65,11.08]
[1726269787962,3.6034,138.68,138.65,11.08]
[1726269792464,3.6037,138.67,138.65,11.08]
[1726269793073,3.6039,138.66,138.63,11.08]
[1726269793265,3.6039,138.66,138.62,3.6048]
[1726269793461,3.6039,138.66,138.63,11.08]
[1726269794166,3.6044,138.65,138.63,11.08]
[1726269798475,3.6044,138.65,138.61,3.6051]
[1726269798675,1.3622,138.69,138.6,2.6652]
[1726269798676,11.08,138.66,138.6,2.6652]
[1726269798871,11.08,138.66,138.61,11.08]
[1726269799874,3.6046,138.64,138.61,11.08]
[1726269800077,3.6046,138.64,138.62,11.08]
[1726269814090,3.6046,138.64,138.61,14.6852]
[1726269818802,3.6043,138.65,138.62,14.6849]
[1726269819896,3.604,138.66,138.63,14.6846]
[1726269821008,3.6037,138.67,138.64,3.6044]
[1726269822003,3.6037,138.67,138.63,14.6846]
[1726269822303,3.6037,138.67,138.63,11.08]
[1726269823602,3.6035,138.68,138.65,11.08]
[1726269823803,3.6035,138.68,138.66,3.65834307]
[1726269825115,4.9655,138.69,138.66,3.65834307]
[1726269826505,3.6034,138.68,138.66,3.65834307]
[1726269830511,12.4422,138.69,138.62,3.6048]
[1726269830704,11.08,138.68,138.63,11.08]
[1726269831101,3.6039,138.66,138.63,11.08]
[1726269831301,11.08,138.68,138.63,11.08]
[1726269832202,3.6041,138.66,138.63,11.08]
[1726269832703,11.08,138.68,138.63,11.08]
[1726269833212,3.6041,138.66,138.62,11.08]
[1726269833607,3.6042,138.65,138.62,11.08]
[1726269834209,3.6045,138.64,138.62,11.08]
[1726269835610,3.6047,138.63,138.6,2.6652]
[1726269835910,3.6047,138.63,138.61,11.08]
[1726269837502,3.6047,138.63,138.6,2.6652]
[1726269837810,3.6047,138.63,138.61,14.6852]
[1726269838511,3.6046,138.64,138.61,14.6852]
[1726269838903,3.6046,138.64,138.63,11.08]
[1726269840013,1.3622,138.69,138.63,11.08]
[1726269840206,1.3622,138.69,138.6,2.6652]
[1726269840514,12.4422,138.69,138.63,11.08]
[1726269840910,12.4422,138.69,138.62,3.6049]
[1726269841111,11.08,138.68,138.63,11.08]
[1726269841808,3.604,138.66,138.63,11.08]
[1726269846513,3.604,138.66,138.62,3.6049]
[1726269846716,3.604,138.66,138.63,11.08]
[1726269854928,11.08,138.68,138.6,2.6652]
[1726269854929,3.6042,138.65,138.61,3.6051]
[1726269855130,3.6042,138.65,138.62,11.08]
[1726269856734,3.6042,138.65,138.61,3.6051]
[1726269856926,3.6042,138.65,138.62,11.08]
[1726269857322,3.6045,138.64,138.62,11.08]
[1726269859632,11.08,138.67,138.6,2.6652]
[1726269859833,11.08,138.66,138.6,2.6652]
[1726269860031,11.08,138.66,138.6,13.7452]
[1726269860340,3.6051,138.62,138.6,13.7452]
[1726269863039,3.6051,138.62,138.6,2.6652]
[1726269863440,3.6051,138.62,138.6,13.7452]
[1726269863936,3.6051,138.62,138.6,11.08]
[1726269864135,1.3084,138.67,138.6,11.08]
[1726269864336,11.08,138.64,138.6,11.08]
[1726269864737,3.6051,138.62,138.6,11.08]
[1726269864939,11.08,138.64,138.59,11.0]
[1726269865338,3.6054,138.61,138.59,11.0]
[1726269865542,3.6054,138.61,138.59,14.56691614]
[1726269867142,3.6054,138.61,138.59,29.25261614]
[1726269869241,3.6054,138.61,138.59,14.56691614]
[1726269869448,3.6054,138.61,138.59,25.64691614]
[1726269870541,3.6055,138.6,138.59,11.0]
[1726269876842,3.6053,138.61,138.59,11.0]
[1726269877643,3.605,138.62,138.59,22.08]
[1726269877846,12.4292,138.64,138.59,22.08]
[1726269878043,12.4292,138.64,138.59,25.69535763]
[1726269878253,3.6052,138.62,138.59,25.69535763]
[1726269880350,12.4292,138.64,138.59,25.69535763]
[1726269880351,3.6052,138.61,138.59,25.69535763]
[1726269880646,3.6052,138.61,138.59,14.61535763]
[1726269882039,3.6055,138.6,138.59,11.0]
[1726269901472,3.6053,138.61,138.59,11.0]
[1726269901669,1.3492,138.64,138.59,11.0]
[1726269901670,11.08,138.63,138.59,11.0]
[1726269902459,3.6051,138.62,138.59,11.0]
[1726269902855,3.6052,138.61,138.59,11.0]
[1726269904480,3.6051,138.62,138.59,14.68192406]
[1726269905955,3.6054,138.61,138.59,11.0]
[1726269914672,3.6055,138.6,138.59,11.0]
[1726269916370,14.6855,138.6,138.59,11.0]
[1726269926179,3.6055,138.6,138.59,11.0]
[1726269934585,14.6855,138.6,138.59,11.0]
[1726269937586,3.6055,138.6,138.59,11.0]
[1726269939993,14.6855,138.6,138.59,11.0]
[1726269947404,3.6055,138.6,138.59,11.0]
[1726269947602,14.6855,138.6,138.59,11.0]
[1726269947898,3.6055,138.6,138.59,11.0]
[1726269948299,3.6053,138.61,138.59,11.0]
[1726269949200,3.6055,138.6,138.59,11.0]
[1726269950101,14.6855,138.6,138.59,11.0]
[1726269955709,3.6055,138.6,138.59,11.0]
[1726269955909,14.6855,138.6,138.59,11.0]
[1726269958418,3.6055,138.6,138.59,11.0]
[1726269958622,3.6053,138.61,138.59,11.0]
[1726269960414,3.6053,138.61,138.59,11.39772727]
[1726269960815,3.6055,138.6,138.59,11.39772727]
[1726269971335,14.6855,138.6,138.59,11.39772727]
[1726269973131,14.6855,138.6,138.58,2.8101173]
[1726269973132,3.6057,138.59,138.58,2.8101173]
[1726269973437,14.6857,138.59,138.58,2.8101173]
[1726269981031,3.6057,138.59,138.58,2.8101173]
[1726269981246,14.6857,138.59,138.58,2.8101173]
[1726269981643,29.59856185,138.59,138.58,2.8101173]
[1726269981842,14.6857,138.59,138.58,2.8101173]
[1726269986944,11.08,138.59,138.56,1.72580645]
[1726269987142,11.08,138.57,138.56,1.72580645]
[1726269987446,14.6863,138.57,138.56,1.72580645]
[1726269998745,3.6065,138.56,138.55,1.77456012]
[1726270003045,14.6865,138.56,138.55,1.77456012]
[1726270005148,3.6065,138.56,138.55,1.77456012]
[1726270005352,14.6865,138.56,138.55,1.77456012]
[1726270012663,3.6065,138.56,138.55,1.77456012]
[1726270012858,14.6865,138.56,138.55,1.77456012]
[1726270014259,3.6064,138.57,138.55,1.77456012]
[1726270014564,11.08,138.56,138.55,1.77456012]
[1726270015362,14.6865,138.56,138.55,1.77456012]
[1726270018068,11.08,138.56,138.55,1.77456012]
[1726270018958,14.6865,138.56,138.55,1.77456012]
[1726270019557,11.08,138.56,138.55,1.77456012]
[1726270020864,14.6865,138.56,138.55,1.77456012]
[1726270021553,3.6061,138.58,138.55,1.77456012]
[1726270021756,11.08,138.58,138.55,1.77456012]
[1726270022167,3.6064,138.57,138.55,1.77456012]
[1726270026265,3.6065,138.56,138.55,1.77456012]
[1726270037560,14.6865,138.56,138.55,1.77456012]
[1726270043278,3.6065,138.56,138.55,1.77456012]
[1726270043470,14.6865,138.56,138.55,1.77456012]
[1726270046986,3.6065,138.56,138.55,1.77456012]
[1726270054687,14.6865,138.56,138.55,1.77456012]
[1726270056184,3.6065,138.56,138.55,1.77456012]
[1726270058592,14.6865,138.56,138.55,1.77456012]
[1726270063484,18.48755556,138.57,138.55,1.77456012]
[1726270063793,11.08,138.57,138.55,1.77456012]
[1726270064900,3.6065,138.56,138.55,1.77456012]
[1726270065090,14.6865,138.56,138.55,1.77456012]
[1726270075105,3.6068,138.55,138.54,1.82331378]
[1726270075305,14.6868,138.55,138.54,1.82331378]
[1726270076305,3.607,138.54,138.53,3.05388563]
[1726270076505,14.687,138.54,138.53,3.05388563]
[1726270079603,3.6073,138.53,138.52,1.92082111]
[1726270080409,4.9835,138.53,138.52,1.92082111]
[1726270082211,16.0635,138.53,138.52,1.92082111]
[1726270083109,30.94115317,138.53,138.52,1.92082111]
[1726270083310,16.0635,138.53,138.52,1.92082111]
[1726270086522,3.6076,138.52,138.51,1.96957478]
[1726270086724,14.6876,138.52,138.51,1.96957478]
[1726270094837,3.6078,138.51,138.5,2.01832844]
[1726270095022,14.6878,138.51,138.5,2.01832844]
[1726270095228,3.6078,138.51,138.5,2.01832844]
[1726270095537,14.6878,138.51,138.5,2.01832844]
[1726270096137,3.6081,138.5,138.48,2.11583578]
[1726270096331,11.08,138.5,138.48,2.11583578]
[1726270096640,3.6086,138.48,138.47,2.16458944]
[1726270097128,14.6886,138.48,138.47,2.16458944]
[1726270098938,14.86839402,138.52,138.47,2.16458944]
[1726270099138,1.3762,138.53,138.47,2.16458944]
[1726270099139,11.08,138.51,138.47,2.16458944]
[1726270099734,11.08,138.5,138.47,2.16458944]
[1726270100744,14.6882,138.5,138.47,2.16458944]
[1726270101631,3.6082,138.5,138.47,2.16458944]
[1726270101845,14.6882,138.5,138.47,2.16458944]
[1726270102036,14.6883,138.49,138.47,2.16458944]
[1726270102338,11.08,138.5,138.47,2.16458944]
[1726270102534,14.6883,138.5,138.47,2.16458944]
[1726270103139,3.6084,138.49,138.47,2.16458944]
[1726270104240,14.6884,138.49,138.47,2.16458944]
[1726270104933,3.6084,138.49,138.47,2.16458944]
[1726270109642,3.6086,138.48,138.47,2.16458944]
[1726270127459,16.23307689,138.53,138.47,2.16458944]
[1726270127660,14.85687689,138.53,138.48,11.08]
[1726270127965,11.08,138.53,138.48,11.08]
[1726270128164,11.08,138.53,138.47,2.16458944]
[1726270128364,11.08,138.53,138.47,13.24458944]
[1726270128568,1.4269,138.55,138.48,11.08]
[1726270128866,11.08,138.54,138.48,11.08]
[1726270129259,11.08,138.54,138.5,11.08]
[1726270129458,16.20507689,138.57,138.51,11.08]
[1726270129654,11.08,138.56,138.51,11.08]
[1726270130156,11.08,138.56,138.51,3.62945919]
[1726270130355,11.08,138.56,138.51,11.08]
[1726270130561,11.08,138.56,138.51,14.7607156]
[1726270131171,3.6069,138.55,138.51,14.7607156]
[1726270132066,3.6069,138.55,138.51,3.6807156]
[1726270132264,3.6069,138.55,138.51,11.08]
[1726270132463,3.6069,138.55,138.51,14.64376435]
[1726270135970,3.6071,138.54,138.51,14.64376435]
[1726270137679,3.6068,138.55,138.51,14.64376435]
[1726270138163,3.6071,138.54,138.51,14.64376435]
[1726270139367,3.6074,138.53,138.51,11.08]
[1726270139966,3.6074,138.53,138.51,14.70775332]
[1726270140863,3.6076,138.52,138.5,11.08]
[1726270145375,3.6078,138.51,138.5,11.08]
[1726270146462,3.6078,138.51,138.49,1.3484]
[1726270146666,3.6081,138.5,138.49,1.3484]
[1726270146972,3.6081,138.5,138.49,12.4284]
[1726270148675,3.6076,138.51,138.49,12.4284]
[1726270148870,3.6076,138.51,138.5,11.08]
[1726270157271,3.6073,138.52,138.5,11.08]
[1726270157473,3.6073,138.52,138.51,14.76729141]
[1726270164782,3.6068,138.54,138.51,14.76729141]
[1726270164988,3.6068,138.54,138.53,11.08]
[1726270173103,3.6068,138.54,138.51,3.68729141]
[1726270173403,3.6068,138.54,138.53,11.08]
[1726270174692,3.6068,138.54,138.51,3.54867311]
[1726270174889,3.6068,138.54,138.5,4.9163]